fUST/lending_fUST_20250601
["ID","MTS","AMOUNT","RATE_DAILY","PERIOD"]
[363377009,1748707231854,200.0,0.00023267,120]
[363377039,1748707523479,214.644692,0.00013699,2]
[363377047,1748707629147,-353.45583726,0.00015632,2]
[363377048,1748707644117,-159.33752494,0.00015632,2]
[363377049,1748707647130,-4487.2066378,0.00015632,2]
[363377050,1748707647151,-1000.0,0.0001595,2]
[363377051,1748707647174,-1200.0,0.00016436,2]
[363377052,1748707647196,-1000.0,0.00016437,2]
[363377053,1748707647219,-430.0,0.00016438,2]
[363377054,1748707647241,-190.68133678,0.00016438,2]
[363377055,1748707647261,-430.0,0.00016438,2]
[363377056,1748707647292,-430.0,0.00016438,2]
[363377057,1748707647313,-430.0,0.00016438,2]
[363377058,1748707647334,-430.0,0.00016438,2]
[363377059,1748707647354,-430.0,0.00016438,2]
[363377060,1748707647375,-1033.19950544,0.00016438,2]
[363377061,1748707647395,-430.0,0.00016438,2]
[363377062,1748707647417,-430.0,0.00016438,2]
[363377063,1748707647440,-430.0,0.00016438,2]
[363377064,1748707647462,-430.0,0.00016438,2]
[363377065,1748707647488,-229.19533137,0.00016438,2]
[363377066,1748707647511,-430.0,0.00016438,2]
[363377067,1748707647535,-406.82,0.00016438,2]
[363377068,1748707647559,-430.0,0.00016438,2]
[363377069,1748707647583,-430.0,0.00016438,2]
[363377070,1748707647606,-430.0,0.00016438,2]
[363377071,1748707647627,-344.502577,0.00016515,2]
[363377072,1748707647649,-377.3,0.0001671,2]
[363377073,1748707647670,-430.0,0.0001671,2]
[363377074,1748707647694,-430.0,0.0001671,2]
[363377075,1748707647715,-430.0,0.0001671,2]
[363377076,1748707647736,-388.78314558,0.0001671,2]
[363377077,1748707648094,-41.21685442,0.0001671,2]
[363377078,1748707648116,-430.0,0.0001671,2]
[363377079,1748707648140,-52.76177965,0.00016712,2]
[363377081,1748707756093,-166.85926317,0.00016438,2]
[363377084,1748707832539,-172.251288,0.00015948,2]
[363377085,1748707832554,-263.14073683,0.00016438,2]
[363377086,1748707832564,-3460.04907082,0.00016438,5]
[363377087,1748707832648,-6693.1505381,0.00016438,5]
[363377088,1748707832657,-5000.0,0.00016545,2]
[363377089,1748707832667,-430.0,0.0001671,2]
[363377090,1748707832680,-430.0,0.0001671,2]
[363377091,1748707832689,-430.0,0.00016711,2]
[363377092,1748707832699,-430.0,0.00016711,2]
[363377093,1748707832710,-430.0,0.00016712,2]
[363377094,1748707832719,-430.0,0.00016712,2]
[363377096,1748707832729,-430.0,0.00016712,2]
[363377097,1748707832738,-1606.76764842,0.00016739,2]
[363377098,1748707832748,-430.0,0.00016898,2]
[363377100,1748707832757,-430.0,0.00016898,2]
[363377102,1748707832767,-430.0,0.00016898,2]
[363377104,1748707832776,-430.0,0.00016898,2]
[363377105,1748707832785,-430.0,0.00016898,2]
[363377106,1748707832795,-430.0,0.00016898,2]
[363377107,1748707832804,-322.2,0.00016898,2]
[363377108,1748707832814,-430.0,0.00016898,2]
[363377109,1748707832823,-430.0,0.00016898,2]
[363377110,1748707832833,-430.0,0.00016983,2]
[363377111,1748707832842,-443.66,0.00016983,2]
[363377112,1748707832851,-430.0,0.00016983,2]
[363377113,1748707832861,-400.0,0.00016983,2]
[363377114,1748707832870,-430.0,0.00016983,2]
[363377115,1748707832880,-430.0,0.00016983,2]
[363377116,1748707832889,-430.0,0.00016983,2]
[363377117,1748707832899,-430.0,0.00016983,2]
[363377118,1748707832908,-430.0,0.00016983,2]
[363377119,1748707832917,-560.65704578,0.00016983,2]
[363377120,1748707832927,-430.0,0.00016983,2]
[363377121,1748707832936,-430.0,0.00016983,2]
[363377122,1748707832945,-430.0,0.00016983,2]
[363377123,1748707832954,-430.0,0.00016983,2]
[363377124,1748707832963,-300.35221266,0.00016983,2]
[363377125,1748707832973,-430.0,0.00016983,2]
[363377126,1748707832982,-430.0,0.00016983,2]
[363377127,1748707832991,-430.0,0.00016983,2]
[363377128,1748707833000,-331.78230289,0.00016983,2]
[363377129,1748707833010,-430.0,0.00016984,2]
[363377130,1748707833019,-430.0,0.00016984,2]
[363377131,1748707833029,-430.0,0.00016984,2]
[363377132,1748707833039,-400.0,0.00016984,2]
[363377133,1748707833048,-430.0,0.00016984,2]
[363377134,1748707833057,-430.0,0.00016984,2]
[363377135,1748707833067,-430.0,0.00016984,2]
[363377136,1748707833076,-430.0,0.00016984,2]
[363377137,1748707833085,-430.0,0.00016984,2]
[363377138,1748707833094,-561.62,0.00016984,2]
[363377139,1748707833103,-430.0,0.00016985,2]
[363377140,1748707833113,-430.0,0.00016986,2]
[363377141,1748707833123,-430.0,0.00016986,2]
[363377142,1748707833132,-430.0,0.00016986,2]
[363377143,1748707833141,-151.0,0.00017172,2]
[363377144,1748707833150,-430.0,0.00017172,2]
[363377145,1748707833159,-430.0,0.00017172,2]
[363377146,1748707833168,-430.0,0.00017172,2]
[363377147,1748707833180,-430.0,0.00017172,2]
[363377148,1748707833189,-430.0,0.00017172,2]
[363377149,1748707833199,-430.0,0.00017172,2]
[363377150,1748707833209,-430.0,0.00017172,2]
[363377151,1748707833219,-430.0,0.00017172,2]
[363377152,1748707833229,-430.0,0.00017172,2]
[363377153,1748707833239,-430.0,0.00017172,2]
[363377154,1748707833249,-430.0,0.00017172,2]
[363377155,1748707833258,-430.0,0.00017172,2]
[363377156,1748707833268,-430.0,0.00017172,2]
[363377157,1748707833278,-500.0,0.00017243,2]
[363377159,1748707833288,-525.73535331,0.00017256,2]
[363377161,1748707833298,-500.0,0.00017256,2]
[363377163,1748707833308,-500.0,0.00017256,2]
[363377165,1748707833318,-500.0,0.00017256,2]
[363377167,1748707833328,-500.0,0.00017256,2]
[363377168,1748707833337,-423.64493862,0.00017256,2]
[363377170,1748707833347,-500.0,0.00017256,2]
[363377172,1748707833357,-500.0,0.00017256,2]
[363377174,1748707833367,-500.0,0.00017256,2]
[363377176,1748707833376,-446.55145703,0.00017256,2]
[363377178,1748707833386,-500.0,0.00017256,2]
[363377180,1748707833396,-500.0,0.00017256,2]
[363377182,1748707833407,-500.0,0.00017256,2]
[363377184,1748707833417,-500.0,0.00017256,2]
[363377186,1748707833430,-500.0,0.00017256,2]
[363377188,1748707833441,-350.0,0.00017256,2]
[363377190,1748707833451,-500.0,0.00017256,2]
[363377192,1748707833462,-430.0,0.00017257,2]
[363377194,1748707833473,-430.0,0.00017257,2]
[363377196,1748707833483,-430.0,0.00017257,2]
[363377198,1748707833494,-430.0,0.00017257,2]
[363377200,1748707833504,-430.0,0.00017257,2]
[363377202,1748707833514,-430.0,0.00017258,2]
[363377204,1748707833524,-430.0,0.00017258,2]
[363377206,1748707833534,-430.0,0.00017258,2]
[363377208,1748707833545,-430.0,0.00017258,2]
[363377210,1748707833557,-430.0,0.0001726,2]
[363377212,1748707833567,-430.0,0.0001726,2]
[363377214,1748707833577,-307.34202674,0.00017346,2]
[363377216,1748707833588,-430.0,0.00017446,2]
[363377218,1748707833598,-430.0,0.00017446,2]
[363377220,1748707833607,-430.0,0.00017446,2]
[363377222,1748707833617,-430.0,0.00017446,2]
[363377224,1748707833629,-430.0,0.00017446,2]
[363377226,1748707833639,-430.0,0.00017446,2]
[363377228,1748707833648,-265.14822035,0.00017446,2]
[363377230,1748707833658,-430.0,0.00017446,2]
[363377232,1748707833668,-428.56,0.00017446,2]
[363377234,1748707833678,-430.0,0.00017446,2]
[363377236,1748707833688,-441.27,0.00017446,2]
[363377238,1748707833698,-430.0,0.00017531,2]
[363377240,1748707833708,-527.9,0.00017531,2]
[363377242,1748707833718,-430.0,0.00017531,2]
[363377244,1748707833727,-430.0,0.00017531,2]
[363377246,1748707833737,-430.0,0.00017532,2]
[363377248,1748707833746,-470.05,0.00017532,2]
[363377250,1748707833755,-430.0,0.00017532,2]
[363377252,1748707833765,-426.24,0.00017532,2]
[363377254,1748707833777,-430.0,0.00017534,2]
[363377256,1748707833786,-430.0,0.00017534,2]
[363377258,1748707833796,-500.0,0.00017644,2]
[363377260,1748707833806,-500.0,0.00017644,2]
[363377262,1748707833816,-295.38451235,0.00017703,2]
[363377264,1748707833825,-430.0,0.0001772,2]
[363377266,1748707833837,-237.2,0.0001772,2]
[363377268,1748707833847,-430.0,0.0001772,2]
[363377270,1748707833857,-430.0,0.0001772,2]
[363377272,1748707833867,-430.0,0.0001772,2]
[363377274,1748707833876,-430.0,0.0001772,2]
[363377276,1748707833887,-430.0,0.0001772,2]
[363377278,1748707833896,-430.0,0.0001772,2]
[363377280,1748707833906,-430.0,0.00017805,2]
[363377282,1748707833915,-430.0,0.00017805,2]
[363377284,1748707833925,-346.56,0.00017805,2]
[363377286,1748707833935,-361.15,0.00017806,2]
[363377288,1748707833946,-493.27,0.00017806,2]
[363377290,1748707833955,-430.0,0.00017808,2]
[363377292,1748707833965,-430.0,0.00017808,2]
[363377294,1748707833976,-563.99032068,0.000179,2]
[363377296,1748707833985,-160.0,0.00017943,2]
[363377299,1748707833996,-229.3428821,0.00017943,2]
[363377301,1748707834006,-842.5625,0.00017943,2]
[363377303,1748707834016,-423.4608169,0.00017943,2]
[363377305,1748707834026,-160.0,0.00017943,2]
[363377307,1748707834036,-160.0,0.00017943,2]
[363377309,1748707834047,-160.0,0.00017943,2]
[363377311,1748707834057,-12664.98044988,0.00017943,2]
[363377313,1748707834067,-212.77096907,0.00017943,2]
[363377315,1748707834078,-160.0,0.00017943,2]
[363377317,1748707834087,-160.0,0.00017943,2]
[363377319,1748707834097,-595.49250285,0.00017986,2]
[363377321,1748707834107,-430.0,0.00017994,2]
[363377323,1748707834117,-203.03,0.00017994,2]
[363377325,1748707834127,-430.0,0.00017994,2]
[363377327,1748707834136,-430.0,0.00017994,2]
[363377329,1748707834147,-430.0,0.00017994,2]
[363377331,1748707834157,-430.0,0.00017994,2]
[363377333,1748707834167,-430.0,0.00018079,2]
[363377335,1748707834178,-430.0,0.00018079,2]
[363377337,1748707834187,-259.52,0.00018082,2]
[363377339,1748707834198,-430.0,0.00018082,2]
[363377341,1748707834207,-563.99032061,0.00018141,2]
[363377343,1748707834217,-430.0,0.00018268,2]
[363377345,1748707834227,-430.0,0.00018268,2]
[363377347,1748707834238,-430.0,0.00018268,2]
[363377349,1748707834248,-430.0,0.00018268,2]
[363377351,1748707834258,-430.0,0.00018268,2]
[363377353,1748707834267,-160.99383892,0.00018353,2]
[363377355,1748707834277,-430.0,0.00018353,2]
[363377357,1748707834286,-430.0,0.00018356,2]
[363377359,1748707834296,-563.99032061,0.00018383,2]
[363377361,1748707834306,-430.0,0.00018542,2]
[363377363,1748707834315,-430.0,0.00018542,2]
[363377365,1748707834326,-430.0,0.00018542,2]
[363377367,1748707834335,-430.0,0.00018542,2]
[363377369,1748707834345,-430.0,0.00018542,2]
[363377371,1748707834355,-563.99032061,0.00018624,2]
[363377373,1748707834365,-430.0,0.00018627,2]
[363377375,1748707834374,-430.0,0.0001863,2]
[363377377,1748707834384,-430.0,0.00018816,2]
[363377379,1748707834394,-430.0,0.00018816,2]
[363377381,1748707834403,-430.0,0.00018816,2]
[363377383,1748707834415,-430.0,0.00018816,2]
[363377386,1748707834426,-430.0,0.00018816,2]
[363377388,1748707834436,-563.99032061,0.00018866,2]
[363377390,1748707834445,-430.0,0.00018901,2]
[363377392,1748707834455,-430.0,0.00018904,2]
[363377394,1748707834465,-150.0,0.00019,2]
[363377395,1748707834475,-512.85,0.0001909,2]
[363377396,1748707834489,-430.0,0.0001909,2]
[363377397,1748707834499,-430.0,0.0001909,2]
[363377398,1748707834508,-430.0,0.0001909,2]
[363377399,1748707834518,-173.57,0.0001909,2]
[363377400,1748707834528,-563.99032061,0.00019107,2]
[363377401,1748707834537,-307.34202673,0.00019118,2]
[363377402,1748707834552,-430.0,0.00019175,2]
[363377403,1748707834562,-255.71811751,0.00019178,2]
[363377404,1748707834571,-430.0,0.00019178,2]
[363377405,1748707834582,-186.004779,0.00019178,2]
[363377406,1748707834594,-563.99032061,0.00019348,2]
[363377407,1748707834604,-430.0,0.00019364,2]
[363377408,1748707834614,-430.0,0.00019364,2]
[363377409,1748707834629,-430.0,0.00019364,2]
[363377410,1748707834639,-389.57,0.00019449,2]
[363377411,1748707834649,-430.0,0.00019452,2]
[363377412,1748707834659,-563.99032061,0.0001959,2]
[363377413,1748707834668,-430.0,0.00019638,2]
[363377414,1748707834678,-430.0,0.00019638,2]
[363377415,1748707834688,-456.82,0.00019638,2]
[363377416,1748707834698,-430.0,0.00019726,2]
[363377417,1748707834708,-264.76,0.00019788,2]
[363377418,1748707834718,-563.99032061,0.00019831,2]
[363377419,1748707834727,-430.0,0.00019912,2]
[363377420,1748707834737,-430.0,0.00019912,2]
[363377421,1748707834747,-151.0,0.00019963,2]
[363377422,1748707834756,-151.0,0.00019963,2]
[363377423,1748707834765,-202.5886477,0.00019963,2]
[363377424,1748707834775,-151.0,0.00019963,2]
[363377425,1748707834785,-151.0,0.00019963,2]
[363377426,1748707834794,-300.0,0.00019963,2]
[363377427,1748707834804,-151.0,0.00019963,2]
[363377428,1748707834813,-300.0,0.00019963,2]
[363377429,1748707834822,-151.0,0.00019963,2]
[363377430,1748707834831,-151.0,0.00019963,2]
[363377431,1748707834841,-300.0,0.00019963,2]
[363377432,1748707834850,-207.4,0.00019963,2]
[363377433,1748707834860,-226.76390347,0.00019963,2]
[363377434,1748707834869,-300.0,0.00019963,2]
[363377435,1748707834878,-300.0,0.00019963,2]
[363377436,1748707834888,-2424.12057977,0.00019963,2]
[363377437,1748707834898,-300.0,0.00019963,2]
[363377438,1748707834908,-300.0,0.00019963,2]
[363377439,1748707834917,-300.0,0.00019963,2]
[363377440,1748707834928,-300.0,0.00019963,2]
[363377441,1748707834937,-300.0,0.00019963,2]
[363377442,1748707834947,-300.0,0.00019963,2]
[363377443,1748707834957,-300.0,0.00019963,2]
[363377444,1748707834966,-300.0,0.00019963,2]
[363377445,1748707834975,-300.0,0.00019963,2]
[363377446,1748707834985,-300.0,0.00019963,2]
[363377447,1748707834994,-500.0,0.00019964,2]
[363377448,1748707835004,-160.0,0.00019999,2]
[363377449,1748707835014,-430.0,0.0002,2]
[363377450,1748707835024,-356.4980681,0.00020055,2]
[363377451,1748707835034,-307.2938119,0.00020055,2]
[363377453,1748707835044,-563.99032061,0.00020072,2]
[363377454,1748707835054,-5295.08,0.00020106,2]
[363377455,1748707835064,-520.53,0.00020186,2]
[363377456,1748707835073,-430.0,0.00020186,2]
[363377457,1748707835084,-214.644692,0.00020187,2]
[363377458,1748707835094,-566.4716824,0.00020258,2]
[363377459,1748707835104,-430.0,0.00020273,2]
[363377460,1748707835114,-563.99032061,0.00020314,3]
[363377461,1748707835124,-566.4716824,0.00020419,2]
[363377462,1748707835135,-430.0,0.0002046,2]
[363377463,1748707835145,-152.51297585,0.00020511,2]
[363377464,1748707835155,-430.0,0.00020547,2]
[363377465,1748707835165,-563.99032061,0.00020555,3]
[363377466,1748707835174,-1211.477916,0.00020579,3]
[363377467,1748707835184,-566.4716824,0.00020733,2]
[363377468,1748707835194,-430.0,0.00020734,2]
[363377469,1748707835204,-563.99032061,0.00020797,4]
[363377470,1748707835341,-430.0,0.00020821,2]
[363377471,1748707835355,-535.34409958,0.00020889,2]
[363377472,1748707835365,-307.34202673,0.0002089,2]
[363377473,1748707835375,-3301.70316813,0.000209,2]
[363377474,1748707835385,-153.0,0.00020932,2]
[363377475,1748707835394,-306.0,0.00020932,2]
[363377476,1748707835405,-7231.02799,0.00020988,2]
[363377477,1748707835414,-34424.3723839,0.00020989,3]
[363377478,1748707835424,-49558.74303309,0.00020989,2]
[363377479,1748707835433,-842.5625,0.00020989,3]
[363377480,1748707835443,-212.77096907,0.00020989,3]
[363377481,1748707835453,-12664.98044988,0.0002099,3]
[363377482,1748707835462,-117262.55190235,0.0002099,2]
[363377711,1748707840816,-368.01474731,0.00017255,2]
[363377713,1748707840825,-91.21266344,0.00017255,2]
[363377723,1748707840904,-408.78733656,0.00017255,2]
[363377725,1748707840913,-500.0,0.00017255,2]
[363377727,1748707840923,-500.0,0.00017255,2]
[363377728,1748707840933,-151.0,0.00020989,2]
[363377730,1748707840942,-1574.93265944,0.0002099,2]
[363377733,1748707840953,-22046.0,0.0002099,2]
[363377735,1748707840965,-83921.65248374,0.0002099,2]
[363377737,1748707840976,-330.154,0.0002099,2]
[363377739,1748707840987,-602.88017538,0.0002099,2]
[363378024,1748707843599,-500.0,0.00017255,2]
[363378026,1748707843609,-500.0,0.00017255,2]
[363378028,1748707843619,-607.58601992,0.00017255,2]
[363378030,1748707843628,-5000.0,0.00020779,2]
[363378032,1748707843638,-1108.630773,0.000209,2]
[363378034,1748707843648,-9399.43403501,0.0002099,2]
[363378044,1748707843687,-14904.57035303,0.0002099,2]
[363378047,1748707843698,-5256.72156911,0.0002099,2]
[363378050,1748707843710,-4344.77911314,0.0002099,2]
[363378374,1748707846892,-213.86212324,0.00016798,2]
[363378376,1748707846902,-264.66341912,0.0002099,2]
[363378384,1748707846970,-2272.52228162,0.0002099,2]
[363378387,1748707846981,-11131.38419594,0.0002099,2]
[363378392,1748707847022,-6632.07182717,0.0002099,2]
[363379012,1748708617881,206.879709,0.00013699,2]
[363379053,1748708837145,-4558.2755332,0.00016144,2]
[363379056,1748708912470,672.45275332,0.0001,7]
[363379057,1748708920338,3617.09253768,0.00015,2]
[363379058,1748708920362,931.0935763,0.00015,2]
[363379060,1748708959138,-177.86255078,0.00016144,2]
[363379107,1748709038667,-224.99301087,0.00015934,2]
[363379109,1748709038677,-5000.0,0.0001595,2]
[363379111,1748709038687,-1200.0,0.00016109,2]
[363379113,1748709038696,-500.0,0.0001611,2]
[363379115,1748709038706,-500.0,0.0001611,2]
[363379117,1748709038716,-405.10432001,0.0001611,2]
[363379119,1748709038725,-500.0,0.0001611,2]
[363379121,1748709038740,-335.92283307,0.0001611,2]
[363379123,1748709038750,-500.0,0.0001611,2]
[363379125,1748709038760,-300.0,0.0001611,2]
[363379127,1748709038769,-300.0,0.0001611,2]
[363379128,1748709038778,-300.0,0.0001611,2]
[363379129,1748709038788,-300.0,0.0001611,2]
[363379131,1748709038798,-24900.0,0.00016111,2]
[363379133,1748709038807,-230.4313465,0.0001636,2]
[363379135,1748709038817,-10000.0,0.00016508,2]
[363379136,1748709038826,-316.84995647,0.0001665,2]
[363379138,1748709038836,-430.0,0.00016738,2]
[363379140,1748709038846,-430.0,0.00016738,2]
[363379142,1748709038855,-168.19204084,0.00016881,2]
[363379144,1748709038865,-300.0,0.00016981,2]
[363379146,1748709038874,-398.53874755,0.00016981,2]
[363379148,1748709038884,-500.0,0.00016981,2]
[363379150,1748709038893,-500.0,0.00016981,2]
[363379152,1748709038902,-500.0,0.00016981,2]
[363379153,1748709038911,-500.0,0.00016981,2]
[363379156,1748709038931,-500.0,0.00016981,2]
[363379158,1748709038941,-500.0,0.00016981,2]
[363379161,1748709038951,-500.0,0.00016981,2]
[363379163,1748709038961,-500.0,0.00016981,2]
[363379165,1748709038973,-500.0,0.00016981,2]
[363379167,1748709038986,-500.0,0.00016981,2]
[363379168,1748709038996,-500.0,0.00016981,2]
[363379169,1748709039006,-246.93032577,0.00016981,2]
[363379170,1748709039017,-159.86,0.00016982,2]
[363379171,1748709039026,-408.48,0.00016982,2]
[363379173,1748709039037,-430.0,0.00016982,2]
[363379175,1748709039046,-1895.8,0.00016982,2]
[363379176,1748709039057,-430.0,0.00016983,2]
[363379177,1748709039067,-430.0,0.00016983,2]
[363379178,1748709039077,-430.0,0.00016983,2]
[363379179,1748709039087,-430.0,0.00016983,2]
[363379180,1748709039096,-430.0,0.00016983,2]
[363379181,1748709039106,-430.0,0.00016983,2]
[363379182,1748709039116,-533.09,0.00017012,2]
[363379183,1748709039125,-430.0,0.00017012,2]
[363379184,1748709039135,-1895.8,0.00017256,2]
[363379185,1748709039145,-402.1124176,0.00017257,2]
[363379186,1748709039154,-430.0,0.00017286,2]
[363379187,1748709039164,-1895.8,0.0001753,2]
[363379188,1748709039174,-430.0,0.00017559,2]
[363379189,1748709039184,-430.0,0.00017559,2]
[363379190,1748709039194,-203.14117043,0.00017559,2]
[363379191,1748709039203,-430.0,0.00017559,2]
[363379192,1748709039214,-430.0,0.00017559,2]
[363379193,1748709039223,-430.0,0.00017559,2]
[363379194,1748709039234,-430.0,0.00017559,2]
[363379195,1748709039244,-430.0,0.00017559,2]
[363379196,1748709039255,-430.0,0.00017559,2]
[363379197,1748709039268,-452.24892255,0.00017559,2]
[363379198,1748709039280,-430.0,0.00017559,2]
[363379199,1748709039291,-430.0,0.00017559,2]
[363379200,1748709039301,-430.0,0.00017559,2]
[363379201,1748709039310,-575.26851512,0.00017559,2]
[363379202,1748709039321,-430.0,0.00017559,2]
[363379203,1748709039331,-430.0,0.00017559,2]
[363379204,1748709039340,-430.0,0.0001756,2]
[363379205,1748709039350,-420.0,0.00017611,2]
[363379206,1748709039360,-420.0,0.00017611,2]
[363379207,1748709039370,-420.0,0.00017611,2]
[363379208,1748709039379,-420.0,0.00017611,2]
[363379209,1748709039388,-1680.0,0.00017699,2]
[363379210,1748709039398,-430.0,0.00017804,2]
[363379211,1748709039408,-430.0,0.00017804,2]
[363379212,1748709039418,-430.0,0.00017804,2]
[363379213,1748709039428,-430.0,0.00017804,2]
[363379214,1748709039438,-430.0,0.00017804,2]
[363379215,1748709039448,-457.39357246,0.00017804,2]
[363379216,1748709039458,-430.0,0.00017804,2]
[363379217,1748709039469,-430.0,0.00017804,2]
[363379218,1748709039479,-1895.8,0.00017804,2]
[363379219,1748709039489,-430.0,0.00017804,2]
[363379220,1748709039498,-430.0,0.00017804,2]
[363379221,1748709039508,-430.0,0.00017804,2]
[363379222,1748709039518,-430.0,0.00017804,2]
[363379223,1748709039528,-430.0,0.00017804,2]
[363379224,1748709039538,-430.0,0.00017804,2]
[363379225,1748709039548,-194.6,0.00017804,2]
[363379226,1748709039561,-194.6,0.00017804,2]
[363379227,1748709039571,-194.6,0.00017804,2]
[363379228,1748709039581,-194.6,0.00017804,2]
[363379229,1748709039590,-194.6,0.00017804,2]
[363379230,1748709039600,-194.6,0.00017804,2]
[363379231,1748709039610,-189.08582887,0.00017804,2]
[363379232,1748709039625,-5.51417113,0.00017804,2]
[363379233,1748709039635,-194.6,0.00017804,2]
[363379234,1748709039644,-194.7,0.00017804,2]
[363379235,1748709039654,-430.0,0.00017804,2]
[363379236,1748709039664,-430.0,0.00017804,2]
[363379237,1748709039674,-430.0,0.00017804,2]
[363379238,1748709039683,-154.18970351,0.00017826,2]
[363379239,1748709039693,-430.0,0.00017832,2]
[363379240,1748709039703,-430.0,0.00017832,2]
[363379241,1748709039713,-430.0,0.00017832,2]
[363379242,1748709039722,-430.0,0.00017832,2]
[363379243,1748709039733,-430.0,0.00017832,2]
[363379244,1748709039743,-439.37059374,0.00017832,2]
[363379245,1748709039753,-430.0,0.00017832,2]
[363379246,1748709039763,-430.0,0.00017832,2]
[363379247,1748709039772,-430.0,0.00017832,2]
[363379248,1748709039973,-430.0,0.00017832,2]
[363379249,1748709039987,-349.96,0.00017833,2]
[363379250,1748709039998,-430.0,0.00017833,2]
[363379251,1748709040008,-448.6292932,0.00017833,2]
[363379252,1748709040019,-430.0,0.00017833,2]
[363379253,1748709040028,-430.0,0.00017833,2]
[363379254,1748709040038,-430.0,0.00017833,2]
[363379256,1748709040051,-430.0,0.00017833,2]
[363379257,1748709040061,-430.0,0.00017833,2]
[363379258,1748709040070,-430.0,0.00017833,2]
[363379259,1748709040079,-444.95503632,0.00017833,2]
[363379260,1748709040090,-430.0,0.00017833,2]
[363379261,1748709040099,-430.0,0.00017834,2]
[363379262,1748709040109,-160.0,0.00017899,2]
[363379263,1748709040119,-229.3428821,0.00017899,2]
[363379264,1748709040128,-842.5625,0.00017899,2]
[363379265,1748709040137,-423.4608169,0.00017899,2]
[363379266,1748709040147,-160.0,0.00017899,2]
[363379267,1748709040157,-160.0,0.00017899,2]
[363379268,1748709040167,-12664.98044988,0.00017899,2]
[363379269,1748709040176,-212.77096907,0.00017899,2]
[363379270,1748709040185,-160.0,0.00017899,2]
[363379271,1748709040195,-339.07964242,0.000179,2]
[363379272,1748709040204,-500.0,0.00017926,2]
[363379273,1748709040214,-430.0,0.00017926,2]
[363379274,1748709040223,-430.0,0.00017926,2]
[363379275,1748709040232,-430.0,0.00017926,2]
[363379276,1748709040242,-199.99999999,0.00017926,2]
[363379277,1748709040252,-430.0,0.00017926,2]
[363379278,1748709040262,-430.0,0.00017926,2]
[363379279,1748709040272,-430.0,0.00017926,2]
[363379280,1748709040283,-430.0,0.00017926,2]
[363379281,1748709040292,-430.0,0.00017926,2]
[363379282,1748709040302,-430.0,0.00017926,2]
[363379283,1748709040311,-430.0,0.00017926,2]
[363379284,1748709040321,-430.0,0.00017926,2]
[363379285,1748709040331,-430.0,0.00017926,2]
[363379286,1748709040341,-430.0,0.00017926,2]
[363379287,1748709040351,-430.0,0.00017926,2]
[363379288,1748709040360,-430.0,0.00017926,2]
[363379289,1748709040368,-423.60155761,0.00017926,2]
[363379291,1748709040376,-430.0,0.00017926,2]
[363379292,1748709040386,-430.0,0.00017926,2]
[363379294,1748709040395,-622.54,0.00017926,2]
[363379296,1748709040405,-430.0,0.00017926,2]
[363379298,1748709040415,-430.0,0.00017926,2]
[363379300,1748709040424,-500.0,0.00018025,2]
[363379301,1748709040434,-500.0,0.00018025,2]